bitfinex-derivatives/quotes_SOLF0:USTF0_20251222
["timestamp","ask_amount","ask_price","bid_price","bid_amount"]
[1766402508952,0.05835305,126.6,126.56,2.59]
[1766402509844,0.05835305,126.6,126.55,2.59]
[1766402509845,3.44835305,126.6,126.55,2.59]
[1766402510547,3.44835305,126.6,126.56,7.114]
[1766402512350,3.44835305,126.6,126.56,9.704]
[1766402514755,93.26,126.63,126.58,2.59]
[1766402514953,10.5,126.64,126.58,2.59]
[1766402515750,3.39,126.64,126.6,0.05264855]
[1766402515945,0.05663253,126.62,126.6,0.05264855]
[1766402524961,95.54762765,126.65,126.6,0.05264855]
[1766402524962,93.24,126.65,126.61,2.48]
[1766402525964,0.05459137,126.64,126.61,2.48]
[1766402527760,3.25459137,126.64,126.6,0.05264855]
[1766402541080,3.25459137,126.64,126.6,7.16444855]
[1766402551182,3.25459137,126.64,126.6,0.05264855]
[1766402551392,3.2,126.62,126.55,2.53]
[1766402551881,3.2,126.6,126.55,2.53]
[1766402552590,0.05124077,126.59,126.56,0.05554411]
[1766402554291,0.05124077,126.59,126.56,7.16944411]
[1766402556688,1.47633891,126.63,126.56,2.58554411]
[1766402557291,1.47633891,126.63,126.58,7.1129]
[1766402557591,0.05082512,126.62,126.59,0.05328886]
[1766402558593,3.51082512,126.62,126.59,0.05328886]
[1766402562698,1.47633891,126.63,126.59,7.16538886]
[1766402563687,0.05629782,126.62,126.59,7.16538886]
[1766402563996,0.05629782,126.62,126.59,0.05328886]
[1766402564798,3.51629782,126.62,126.59,0.05328886]
[1766402567298,10.62709782,126.62,126.59,0.05328886]
[1766402567596,3.46,126.6,126.54,3.44]
[1766402568499,0.05240177,126.58,126.56,0.05714905]
[1766402569190,0.00240177,126.58,126.56,10.61114905]
[1766402575798,3.46,126.64,126.57,3.44]
[1766402576698,0.05551476,126.62,126.59,0.06086383]
[1766402579205,3.51551476,126.62,126.59,0.06086383]
[1766402583112,3.51551476,126.62,126.59,0.00086383]
[1766402585818,10.62621476,126.62,126.59,0.00086383]
[1766402586017,3.49,126.61,126.59,0.00086383]
[1766402587606,12.07783891,126.61,126.55,3.3]
[1766402588724,0.06057787,126.59,126.57,0.0541021]
[1766402592322,3.55057787,126.59,126.57,0.0041021]
[1766402595321,0.06057787,126.59,126.57,0.0041021]
[1766402599720,100.349,126.65,126.6,3.3]
[1766402599919,3.49,126.67,126.6,3.3]
[1766402600538,3.49,126.67,126.61,3.3]
[1766402600833,2.3075289,126.7,126.63,0.05888838]
[1766402600834,0.06051747,126.65,126.63,0.05888838]
[1766402601035,0.05705568,126.65,126.63,0.05888838]
[1766402602634,3.54705568,126.65,126.59,3.3]
[1766402602834,3.49,126.65,126.59,3.3]
[1766402603540,0.06026673,126.63,126.61,7.16535575]
[1766402603931,0.06026673,126.63,126.61,0.05415575]
[1766402605934,0.00026673,126.63,126.61,3.35415575]
[1766402606137,3.49,126.68,126.61,10.46515575]
[1766402606337,3.49,126.68,126.61,3.35415575]
[1766402607146,0.0563205,126.66,126.61,3.35415575]
[1766402607545,0.0563205,126.66,126.62,7.1105]
[1766402607751,0.0563205,126.66,126.62,10.4105]
[1766402608248,0.0563205,126.66,126.63,7.1101]
[1766402609737,0.0563205,126.66,126.63,10.4101]
[1766402612145,0.0563205,126.66,126.61,93.29415575]
[1766402612146,0.0563205,126.66,126.61,10.46515575]
[1766402612350,3.5463205,126.66,126.61,10.46515575]
[1766402614253,0.0563205,126.66,126.62,10.4007]
[1766402617257,0.0563205,126.66,126.63,7.11]
[1766402617458,0.0563205,126.66,126.63,10.44]
[1766402618758,0.0563205,126.66,126.63,3.33]
[1766402620557,0.0563205,126.66,126.63,10.4401]
[1766402620762,3.19,126.69,126.64,3.33]
[1766402621165,10.2971,126.69,126.64,3.33]
[1766402621464,3.19,126.69,126.62,10.4403]
[1766402621673,0.06049522,126.67,126.64,0.06001436]
[1766402627470,3.25049522,126.67,126.64,0.06001436]
[1766402627664,3.19,126.66,126.64,1.436e-05]
[1766402630170,3.19,126.65,126.59,10.4423]
[1766402631265,0.05709775,126.63,126.61,0.05714683]
[1766402640873,3.19,126.62,126.57,3.33]
[1766402641476,3.19,126.62,126.56,3.33]
[1766402641673,0.05486513,126.6,126.58,0.05444749]
[1766402674801,0.05486513,126.6,126.58,7.16724749]
[1766402684507,0.00486513,126.6,126.59,10.6324]
[1766402684805,0.00486513,126.6,126.59,3.52]
[1766402687713,0.00486513,126.6,126.58,7.16734749]
[1766402693113,0.00486513,126.6,126.59,3.52]
[1766402693320,0.00176892,126.62,126.59,3.52]
[1766402693519,0.00176892,126.62,126.58,7.16734749]
[1766402693713,0.00176892,126.62,126.58,3.57444749]
[1766402694324,0.0526068,126.61,126.58,3.57444749]
[1766402695223,0.0526068,126.61,126.58,10.68734749]
[1766402698628,0.0026068,126.61,126.59,10.6323]
[1766402712537,0.0026068,126.61,126.59,3.52]
[1766402712929,0.0026068,126.61,126.58,0.05444749]
[1766402723741,0.0026068,126.61,126.58,3.44444749]
[1766402732446,0.0026068,126.61,126.59,3.21]
[1766402745764,7.1096,126.64,126.59,3.21]
[1766402746761,0.05760226,126.63,126.59,3.21]
[1766402757967,7.1093,126.65,126.6,3.5]
[1766402758867,0.05095551,126.64,126.61,3.56090016]
[1766402766269,0.05095551,126.64,126.61,0.06090016]
[1766402769773,0.05095551,126.64,126.61,3.33090016]
[1766402772083,5.7386812,126.64,126.59,3.27]
[1766402773279,5.7386812,126.64,126.6,0.05564509]
[1766402773465,5.7386812,126.64,126.59,3.27]
[1766402773759,7.1104,126.63,126.59,3.27]
[1766402774476,7.1104,126.63,126.6,0.05483284]
[1766402774775,7.1104,126.63,126.59,3.27]
[1766402775677,7.1104,126.63,126.6,0.05246486]
[1766402775878,7.1104,126.63,126.59,3.27]
[1766402777180,12.8482812,126.64,126.59,3.27]
[1766402777380,2.3586812,126.64,126.59,3.27]
[1766402777584,0.05095551,126.64,126.59,3.27]
[1766402778192,0.05095551,126.64,126.59,10.3821]
[1766402778375,0.00095551,126.64,126.6,3.27]
[1766402779184,0.00095551,126.64,126.61,3.27]
[1766402779486,0.00095551,126.64,126.61,3.32]
[1766402780573,96.62,126.68,126.61,3.32]
[1766402781588,0.05228224,126.66,126.61,3.32]
[1766402786183,0.05228224,126.66,126.61,10.4312]
[1766402786492,0.00228224,126.66,126.61,3.32]
[1766402787281,4.85585329,126.71,126.63,3.27]
[1766402788286,0.05256248,126.68,126.66,3.32447348]
[1766402788588,0.00256248,126.68,126.66,3.32447348]
[1766402794495,1.47585329,126.72,126.66,3.32447348]
[1766402795396,0.05548122,126.7,126.66,3.32447348]
[1766402795691,0.05548122,126.7,126.67,3.28]
[1766402795896,0.05548122,126.7,126.66,3.33447348]
[1766402812806,1.47585329,126.72,126.66,3.33447348]
[1766402813201,1.47585329,126.74,126.67,2.44]
[1766402813904,0.055282,126.72,126.69,9.59899796]
[1766402815503,96.49,126.75,126.7,2.44]
[1766402815800,1.47585329,126.74,126.7,2.44]
[1766402816517,0.05325994,126.73,126.7,2.44]
[1766402817615,0.00325994,126.73,126.7,2.44]
[1766402821312,0.00325994,126.73,126.7,9.5462]
[1766402821909,0.00325994,126.73,126.71,2.34]
[1766402822714,1.47585329,126.78,126.72,2.34]
[1766402823307,1.47585329,126.78,126.69,110.5478]
[1766402823308,1.47585329,126.78,126.74,2.34]
[1766402823512,1.47585329,126.8,126.74,2.34]
[1766402823816,1.47585329,126.8,126.76,0.05655969]
[1766402824813,0.05131339,126.79,126.76,0.05655969]
[1766402826318,0.00131339,126.79,126.76,0.05655969]
[1766402830128,96.57,126.84,126.76,0.05655969]
[1766402830316,11.96465329,126.84,126.74,110.505]
[1766402830618,1.47585329,126.85,126.76,110.4859]
[1766402830821,1.47585329,126.85,126.78,7.1012]
[1766402831020,4.86585329,126.85,126.78,7.1012]
[1766402831322,0.05096173,126.83,126.8,0.05012275]
[1766402832223,1.52681502,126.83,126.8,0.05012275]
[1766402833218,7.0969,126.87,126.8,0.05012275]
[1766402833424,4.86585329,126.87,126.8,0.05012275]
[1766402833824,1.47585329,126.85,126.8,0.05012275]
[1766402834224,0.05461102,126.84,126.8,0.05012275]
[1766402834419,3.44461102,126.84,126.8,0.05012275]
[1766402834726,1.47585329,126.83,126.8,0.05012275]
[1766402835318,3.44461102,126.84,126.8,0.05012275]
[1766402835533,4.92046431,126.84,126.8,0.05012275]
[1766402837324,12.01886431,126.84,126.8,0.05012275]
[1766402837528,1.47585329,126.82,126.77,7.1019]
[1766402838628,0.05048121,126.81,126.78,0.05690014]
[1766402842826,3.44048121,126.81,126.7,136.54662215]
[1766402843133,7.0995,126.82,126.68,117.9565093]
[1766402843134,3.39,126.78,126.68,110.5536]
[1766402843433,3.39,126.78,126.69,203.6676]
[1766402843819,3.39,126.78,126.72,7.105]
[1766402844023,0.00373929,126.75,126.72,0.05441714]
[1766402844426,2.30032215,126.79,126.72,0.05441714]
[1766402844631,3.39,126.8,126.72,0.05441714]
[1766402844829,3.39,126.8,126.71,110.5293]
[1766402845532,0.05607785,126.77,126.74,0.05105048]
[1766402845722,0.05607785,126.77,126.74,7.15495048]
[1766402846633,7.1005,126.81,126.74,7.15495048]
[1766402846829,10.4905,126.81,126.74,7.15495048]
[1766402847032,3.39,126.8,126.74,7.15495048]
[1766402847532,0.05580462,126.78,126.74,7.15495048]
[1766402848425,3.44580462,126.78,126.74,0.05105048]
[1766402853040,0.05580462,126.78,126.74,7.15495048]
[1766402853339,3.39,126.82,126.74,110.55505048]
[1766402853530,5.69032215,126.86,126.76,110.4864]
[1766402854226,0.05424038,126.82,126.8,0.0527902]
[1766402856337,3.39,126.86,126.8,7.1530902]
[1766402857444,0.05363506,126.84,126.8,7.1530902]
[1766402858940,3.43,126.88,126.82,7.0993]
[1766402859233,110.3395,126.94,126.81,110.4452]
[1766402859234,3.43,126.9,126.81,110.4452]
[1766402859932,3.43,126.89,126.8,203.5709]
[1766402860138,3.48610416,126.87,126.84,0.06072527]
[1766402861143,3.48610416,126.87,126.84,0.00072527]
[1766402862640,3.48610416,126.87,126.77,110.4741]
[1766402862839,3.43,126.86,126.77,203.5941]
[1766402863144,3.43,126.86,126.79,7.1011]
[1766402863733,0.06089642,126.84,126.81,0.05408395]
[1766402866250,3.49089642,126.84,126.81,0.05408395]
[1766402867641,0.06089642,126.84,126.81,0.05408395]
[1766402871044,0.00089642,126.84,126.81,0.05408395]
[1766402871441,0.00089642,126.84,126.81,7.15408395]
[1766402878351,0.00089642,126.84,126.81,0.05408395]
[1766402881551,0.00089642,126.84,126.82,7.0994]
[1766402881948,0.00089642,126.84,126.81,93.15408395]
[1766402882150,0.00089642,126.84,126.81,0.05408395]
[1766402890761,3.24089642,126.84,126.81,0.00408395]
[1766402891466,10.33969642,126.84,126.81,0.00408395]
[1766402891971,3.24,126.83,126.77,7.1021]
[1766402892358,3.24,126.81,126.75,100.2029]
[1766402892761,0.05314809,126.79,126.77,0.05198534]
[1766402895770,3.29314809,126.79,126.77,0.00198534]
[1766402898654,0.05314809,126.79,126.77,0.00198534]
[1766402903471,3.24,126.83,126.77,0.00198534]
[1766402904479,0.05268032,126.81,126.77,0.00198534]
[1766402904667,0.05268032,126.81,126.77,7.10418534]
[1766402906767,0.00268032,126.81,126.77,7.10418534]
[1766402913576,3.27,126.88,126.77,101.93195649]
[1766402913876,3.27,126.88,126.76,100.45813416]
[1766402913877,3.27,126.84,126.76,100.45813416]
[1766402914471,3.27,126.84,126.77,7.1022]
[1766402914673,0.05560196,126.82,126.79,0.05729948]
[1766402919287,3.52560196,126.82,126.79,0.05729948]
[1766402919786,3.52560196,126.82,126.76,93.12]
[1766402919987,3.47,126.81,126.75,7.1028]
[1766402920290,10.5701,126.81,126.75,7.1028]
[1766402920788,3.47,126.81,126.75,7.1028]
[1766402920990,0.05166042,126.79,126.77,0.06036007]
[1766402931202,3.52166042,126.79,126.77,0.00036007]
[1766402931396,3.52166042,126.79,126.72,95.5667976]
[1766402931808,3.52166042,126.79,126.74,7.1038]
[1766402932507,3.52166042,126.79,126.75,0.05079308]
[1766402948840,3.24,126.83,126.75,0.05079308]
[1766402949128,3.24,126.83,126.72,213.42323176]
[1766402949129,3.24,126.83,126.74,119.31147115]
[1766402950032,0.05938005,126.8,126.77,0.05998614]
[1766402950631,0.05938005,126.8,126.77,7.16208614]
[1766402959334,0.05938005,126.8,126.78,7.1013]
[1766402959538,3.24,126.82,126.78,7.1013]
[1766402960441,0.05225757,126.81,126.78,7.1013]
[1766402961134,0.05225757,126.81,126.77,0.05998614]
[1766402961135,0.00225757,126.81,126.79,7.1008]
[1766402963044,0.00225757,126.81,126.8,7.1006]
[1766402964740,3.24,126.85,126.8,7.1006]
[1766402965546,3.24,126.85,126.78,111.94313699]
[1766402965933,0.04988776,126.83,126.81,7.0995]
[1766402966134,7.0966,126.88,126.8,0.06022741]
[1766402966334,7.0966,126.88,126.79,110.4605]
[1766402967047,0.0468373,126.85,126.82,0.05486309]
[1766402967544,0.0468373,126.85,126.82,7.15436309]
[1766402971348,0.0468373,126.85,126.82,0.05486309]
[1766402980144,3.2668373,126.85,126.82,0.05486309]
[1766402999267,0.0468373,126.85,126.82,0.05486309]
[1766403000967,3.2668373,126.85,126.82,0.05486309]
[1766403003669,3.2668373,126.85,126.82,0.00486309]
[1766403003876,3.2668373,126.85,126.77,7.33813416]
[1766403004171,3.22,126.85,126.77,7.33813416]
[1766403004576,3.22,126.84,126.79,7.1011]
[1766403004964,3.27086958,126.83,126.8,0.05508104]
[1766403005166,3.27086958,126.83,126.77,14.44023416]
[1766403005378,3.27086958,126.83,126.75,9.83724528]
[1766403005379,3.22,126.82,126.75,7.33813416]
[1766403005575,3.22,126.82,126.74,7.33813416]
[1766403006182,0.06056344,126.79,126.77,0.05152302]
[1766403007074,0.06056344,126.79,126.77,7.15362302]
[1766403007279,2.2983258,126.83,126.77,7.15362302]
[1766403007280,3.24,126.83,126.77,0.05152302]
[1766403008169,0.05470198,126.81,126.77,0.05152302]
[1766403008369,0.05470198,126.81,126.79,7.1011]
[1766403011384,0.05470198,126.81,126.8,7.1006]
[1766403012287,0.05470198,126.81,126.78,7.1012]
[1766403012492,0.05470198,126.81,126.77,0.05152302]
[1766403013682,0.05470198,126.81,126.79,7.1011]
[1766403017492,7.0979,126.85,126.8,7.1004]
[1766403017493,3.24,126.85,126.8,7.1004]
[1766403018592,0.04151601,126.84,126.81,0.05797483]
[1766403018786,2.2983258,126.88,126.81,0.05797483]
[1766403019594,2.2983258,126.88,126.82,7.0993]
[1766403019794,2.2983258,126.88,126.84,0.05250655]
[1766403020698,3.24,126.87,126.84,0.05250655]
[1766403021294,3.24,126.87,126.84,0.00250655]
[1766403022091,3.24,126.86,126.79,7.33813416]
[1766403022398,3.24,126.86,126.8,7.1001]
[1766403022997,3.24,126.86,126.81,7.0999]
[1766403023296,0.05250655,126.85,126.82,0.05725318]
[1766403024097,3.29250655,126.85,126.82,0.05725318]
[1766403024395,3.29250655,126.85,126.8,7.1006]
[1766403025397,3.29250655,126.85,126.81,0.05512601]
[1766403028003,4.71175728,126.84,126.81,0.05512601]
[1766403028298,3.24,126.83,126.78,7.1012]
[1766403029398,0.05603713,126.82,126.79,0.05312679]
[1766403031403,0.05603713,126.82,126.79,7.15422679]
[1766403031603,1.47175728,126.86,126.79,1.82312679]
[1766403031802,1.47175728,126.86,126.79,1.77]
[1766403032505,0.05627395,126.84,126.81,0.05210915]
[1766403034904,3.36627395,126.84,126.81,0.05210915]
[1766403035601,4.83803123,126.84,126.81,0.05210915]
[1766403040115,3.26,126.83,126.81,0.00210915]
[1766403053620,0.05627395,126.84,126.81,0.00210915]
[1766403055730,3.31627395,126.84,126.81,0.00210915]
[1766403062515,4.78803123,126.84,126.81,0.00210915]
[1766403063029,3.31627395,126.84,126.81,0.00210915]
[1766403064332,7.0967,126.88,126.81,0.00210915]
[1766403064540,7.34423118,126.89,126.81,3.23210915]
[1766403064541,8.56735728,126.89,126.81,3.23210915]
[1766403064829,8.56735728,126.89,126.81,3.23]
[1766403065334,0.05791461,126.86,126.84,0.05446064]
[1766403066233,0.05791461,126.86,126.84,0.00446064]
[1766403066427,3.31791461,126.86,126.84,0.00446064]
[1766403067031,1.47175728,126.88,126.84,0.00446064]
[1766403067225,1.47175728,126.9,126.84,0.00446064]
[1766403067726,8.56675728,126.9,126.84,0.00446064]
[1766403068128,0.060847,126.88,126.84,0.00446064]
[1766403069038,2.580847,126.88,126.84,0.00446064]
[1766403069433,2.580847,126.88,126.84,7.10266064]
[1766403072936,2.580847,126.88,126.84,0.00446064]
[1766403075736,0.060847,126.88,126.84,3.37446064]
[1766403076039,3.27146254,126.91,126.85,3.37]
[1766403076740,2.58,126.9,126.85,3.37]
[1766403077039,0.03381304,126.89,126.86,0.05546003]
[1766403078934,6.254e-05,126.91,126.87,3.37]
[1766403079334,1.47175728,126.96,126.87,3.37]
[1766403079335,2.61,126.98,126.87,3.37]
[1766403079639,2.61,126.96,126.87,3.37]
[1766403079834,2.61,126.94,126.88,3.37]
[1766403080041,2.61,126.94,126.9,0.05483101]
[1766403080940,2.61,126.93,126.9,0.05483101]
[1766403081734,2.61,126.93,126.9,0.00483101]
[1766403081936,2.56,126.91,126.84,10.4679]
[1766403082143,4.03175728,126.9,126.84,10.4679]
[1766403082441,4.03175728,126.9,126.84,3.37]
[1766403082946,0.05325753,126.88,126.86,0.0584299]
[1766403087742,0.05325753,126.88,126.82,10.469]
[1766403087940,2.56,126.89,126.82,10.469]
[1766403088943,0.05799093,126.87,126.82,7.61739171]
[1766403090049,0.05799093,126.87,126.83,0.05000531]
[1766403090544,2.55799093,126.87,126.83,0.05000531]
[1766403090752,2.45,126.84,126.78,3.35]
[1766403091248,2.45,126.84,126.79,7.1011]
[1766403091856,0.06008195,126.83,126.8,0.05503475]
[1766403094551,8.195e-05,126.83,126.8,10.50543475]
[1766403095557,7.0964,126.88,126.83,7.0988]
[1766403095558,2.51,126.88,126.83,7.0988]
[1766403096051,2.51,126.88,126.82,3.23]
[1766403096651,0.05872036,126.86,126.84,0.05481218]
[1766403097051,2.56872036,126.86,126.84,0.00481218]
[1766403097253,2.56872036,126.86,126.79,3.23]
[1766403098157,2.56872036,126.86,126.81,0.05620145]
[1766403098954,0.05872036,126.86,126.81,3.28620145]
[1766403099154,2.52,126.92,126.84,3.23]
[1766403099657,2.52,126.91,126.84,3.23]
[1766403100265,2.47,126.87,126.8,7.1003]
[1766403100446,2.47,126.86,126.8,10.3303]
[1766403100644,2.47,126.86,126.8,3.23]
[1766403100849,2.47,126.88,126.8,3.23]
[1766403101139,2.47,126.86,126.78,10.56813416]
[1766403101341,4.77008905,126.85,126.83,0.00482625]
[1766403101544,2.42,126.84,126.78,3.23]
[1766403102455,0.05771313,126.82,126.8,0.05135029]
[1766403104054,11.81517035,126.87,126.8,0.05135029]
[1766403104254,2.48,126.86,126.8,0.05135029]
[1766403105051,0.05810354,126.84,126.8,0.05135029]
[1766403109465,0.05810354,126.84,126.8,3.28135029]
[1766403109665,0.05810354,126.84,126.8,10.38165029]
[1766403112670,2.53810354,126.84,126.8,0.05135029]
[1766403113868,4.83617389,126.84,126.8,0.05135029]
[1766403114069,2.43,126.81,126.75,3.23]
[1766403114677,2.29807035,126.82,126.76,10.3327]
[1766403115071,0.05350662,126.8,126.78,0.05733567]
[1766403115772,9.5286,126.84,126.78,3.28733567]
[1766403116080,2.48,126.84,126.78,0.05733567]
[1766403116972,0.05751409,126.82,126.78,0.05733567]
[1766403117675,0.05751409,126.82,126.78,7.15883567]
[1766403117975,0.05751409,126.82,126.78,0.05733567]
[1766403119671,0.05751409,126.82,126.79,7.1011]
[1766403120690,0.05751409,126.82,126.78,0.05733567]
[1766403122900,2.48,126.81,126.75,10.333]
[1766403123700,2.48,126.81,126.76,7.1028]
[1766403123891,0.05455448,126.8,126.77,0.05289004]
[1766403124391,0.05455448,126.8,126.77,7.15509004]
[1766403126002,0.05455448,126.8,126.77,10.35509004]
[1766403127799,0.05455448,126.8,126.77,0.05289004]
[1766403128801,2.48455448,126.8,126.77,0.05289004]
[1766403129302,0.05455448,126.8,126.77,0.05289004]
[1766403134699,0.00455448,126.8,126.77,3.25289004]
[1766403136302,2.48,126.87,126.79,3.2]
[1766403137500,0.05133036,126.84,126.82,0.04996757]
[1766403138298,0.00133036,126.84,126.82,0.04996757]
[1766403139403,0.00133036,126.84,126.82,7.14926757]
[1766403139607,2.53,126.89,126.83,3.2]
[1766403140105,9.39347035,126.9,126.83,3.2]
[1766403140106,2.53,126.91,126.83,3.2]
[1766403140702,0.05835306,126.88,126.86,0.05417979]
[1766403142604,0.05835306,126.88,126.86,0.00417979]
[1766403143409,2.53835306,126.88,126.8,10.3003]
[1766403143606,2.48,126.88,126.81,3.2]
[1766403144500,0.05260662,126.86,126.83,0.05485591]
[1766403149007,0.05260662,126.86,126.83,3.39485591]
[1766403154609,0.00260662,126.86,126.83,3.39485591]
[1766403154815,0.00260662,126.86,126.83,10.49365591]
[1766403156217,2.53,126.92,126.84,3.32]
[1766403156414,1.47060334,126.89,126.81,3.32]
[1766403156614,2.53,126.88,126.81,3.32]
[1766403157312,110.3522,126.92,126.78,132.00913416]
[1766403157313,0.05528619,126.86,126.83,0.05886143]
[1766403157515,0.05928015,126.86,126.83,0.06048541]
[1766403157911,3.94060334,126.85,126.78,10.4214]
[1766403158116,1.47060334,126.83,126.78,3.32]
[1766403158317,3.94060334,126.83,126.75,3.32]
[1766403159119,0.05103953,126.8,126.78,0.05397905]
[1766403164625,0.05103953,126.8,126.78,0.00397905]
[1766403165132,0.00103953,126.8,126.78,0.00397905]
[1766403167834,0.00103953,126.8,126.78,10.42557905]
[1766403172229,0.00103953,126.8,126.79,3.32]
[1766403172535,2.47,126.86,126.8,3.32]
[1766403173434,0.05497282,126.84,126.82,0.06048888]
[1766403174236,0.00497282,126.84,126.82,10.47988888]
[1766403175640,2.47,126.88,126.82,10.47988888]
[1766403175935,1.47060334,126.89,126.83,10.4187]
[1766403176738,0.05168468,126.87,126.85,0.05173414]
[1766403179349,2.47,126.86,126.81,7.0995]
[1766403179533,1.47060334,126.85,126.79,3.32]
[1766403179940,3.94060334,126.85,126.79,3.32]
[1766403180140,3.94060334,126.83,126.77,3.32]
[1766403180437,0.05680775,126.81,126.79,0.05413921]
[1766403181138,1.47060334,126.83,126.79,0.05413921]
[1766403181328,2.47,126.85,126.79,3.37413921]
[1766403181329,3.94060334,126.85,126.79,3.37413921]
[1766403182144,0.0521972,126.83,126.79,3.37413921]
[1766403182642,0.0521972,126.83,126.79,10.47523921]
[1766403183327,0.0021972,126.83,126.8,10.4204]
[1766403183838,0.0021972,126.83,126.81,3.32]
[1766403184038,1.47060334,126.87,126.81,3.32]
[1766403184850,2.52,126.88,126.81,3.32]
[1766403185143,0.05721293,126.85,126.83,0.05089086]
[1766403187638,2.52,126.88,126.83,0.05089086]
[1766403187840,1.47060334,126.89,126.83,3.25089086]
[1766403188653,0.04448575,126.87,126.83,3.25089086]
[1766403188855,0.00448575,126.87,126.83,3.25089086]
[1766403190556,0.00448575,126.87,126.83,10.34959086]
[1766403192372,2.63,126.9,126.84,10.2981]
[1766403193268,2.63,126.9,126.86,0.05911242]
[1766403194871,1.47060334,126.89,126.86,0.05911242]
[1766403195064,4.14060334,126.89,126.82,10.2991]
[1766403195864,4.14060334,126.89,126.83,3.2]
[1766403196170,0.04979837,126.87,126.85,0.05119218]
[1766403199670,2.66,126.91,126.85,0.05119218]
[1766403199858,4.13060334,126.91,126.85,0.05119218]
[1766403200169,2.66,126.9,126.85,0.05119218]
[1766403202173,4.13060334,126.92,126.85,3.25119218]
[1766403202471,2.66,126.91,126.87,0.05635395]
[1766403207178,1.47060334,126.92,126.87,0.05635395]
[1766403208375,4.13060334,126.92,126.87,0.05635395]
[1766403211173,2.66,126.91,126.87,0.05635395]
[1766403216283,2.66,126.96,126.88,3.45]
[1766403216580,2.66,126.96,126.91,0.0590505]
[1766403217282,9.7517,126.96,126.91,0.0590505]
[1766403219385,2.66,126.95,126.91,0.0590505]
[1766403221576,9.7522,126.95,126.91,0.0590505]
[1766403221883,2.66,126.94,126.91,0.0590505]
[1766403238605,2.66,126.94,126.91,7.1533505]
[1766403240712,2.66,126.96,126.91,7.1533505]
[1766403240901,2.66,126.96,126.92,7.0937]
[1766403241204,2.66,126.98,126.92,3.45]
[1766403241412,2.66,127.0,126.94,0.05568575]
[1766403242609,9.7495,127.0,126.94,0.05568575]
[1766403242809,2.66,126.99,126.94,0.05568575]
[1766403243306,2.66,126.98,126.94,0.05568575]
[1766403247108,2.66,126.97,126.92,7.0937]
[1766403248211,0.05756069,126.96,126.93,0.04989803]
[1766403249509,0.05756069,126.96,126.93,7.14309803]
[1766403252001,2.6,126.99,126.94,10.4027]
[1766403252309,2.6,126.99,126.94,3.31]
[1766403252705,4.95724392,127.04,126.95,3.31]
[1766403253015,2.66,127.06,126.98,3.3614986]
[1766403253201,2.66,127.06,127.01,0.05632213]
[1766403253803,2.66,127.05,127.01,0.05632213]
[1766403254413,7.0862,127.06,126.96,110.3121]
[1766403254414,4.89724392,127.02,126.96,3.31]
[1766403254807,2.6,127.01,126.96,3.31]
[1766403255210,0.05003373,127.0,126.97,0.04983747]
[1766403255407,2.65003373,127.0,126.95,7.0919]
[1766403255722,4.94727765,127.0,126.94,3.31]
[1766403256406,2.65003373,127.0,126.94,3.31]
[1766403256608,2.65003373,127.0,126.96,0.05996516]
[1766403258005,2.65003373,127.0,126.93,7.0928]
[1766403258311,2.6,127.0,126.93,7.0928]
[1766403259011,0.05526667,126.98,126.95,0.05942091]
[1766403268614,0.05526667,126.98,126.95,3.57942091]
[1766403268913,9.6989,127.01,126.95,10.67152091]
[1766403269720,0.05127247,126.99,126.95,10.67152091]
[1766403270110,0.05127247,126.99,126.95,0.05942091]
[1766403273018,2.66127247,126.99,126.95,0.05942091]
[1766403273418,9.75137247,126.99,126.95,0.05942091]
[1766403275425,2.66127247,126.99,126.95,0.05942091]
[1766403282125,1.46833222,126.98,126.93,7.0933]
[1766403282534,1.46833222,126.98,126.92,3.27]
[1766403282934,8.55903222,126.98,126.9,10.3644]
[1766403283134,8.55903222,126.98,126.93,0.0587921]
[1766403283135,0.05177184,126.95,126.93,0.0587921]
[1766403291642,0.05177184,126.95,126.91,7.0941]
[1766403292543,0.05177184,126.95,126.92,0.05759003]
[1766403298256,1.52010406,126.95,126.92,0.05759003]
[1766403298558,1.52010406,126.95,126.89,7.095]
[1766403298851,1.46833222,126.93,126.88,3.27]
[1766403299757,0.05471732,126.92,126.89,0.05083305]
[1766403301754,0.05471732,126.92,126.89,0.00083305]